Cogmind - Beta 13 @@@ ROGUE MODE // 2024.04.11 @ 19:23:45 Player: ebo Result: Core destroyed Performance ------------- Evolutions (2) 1000 Regions Visited (4) 800 Robots Destroyed (33) 165 Value Destroyed (1277) 1277 Prototype IDs (0) 0 Alien Tech Used (0) 0 Bonus (0) 0 TOTAL SCORE: 3242 Bonus ------- None Cogmind --------- Core Integrity 0/550 Matter 148/300 Energy 8/100 System Corruption 0% Temperature Critical (523) Movement Treading (145) Location -8/Materials Parts ------- > --- POWER (2) -------- (None) > --- PROPULSION (3) --- Advanced Treads > --- UTILITY (4) ------ Medium Storage Unit Core Analyzer Improved Medium Armor Plating > --- WEAPON (2) ------- Rocket Launcher > --- INVENTORY (10) --- Large Matter Pod (5) Light Armor Plating Peak State ------------ > --- POWER ------------ Light Nuclear Core Micro Nuclear Core > --- PROPULSION ------- Armored Treads Armored Treads Armored Treads > --- UTILITY ---------- Small Storage Unit Medium Storage Unit Core Analyzer Utility Shielding > --- WEAPON ----------- Particle Gun > --- INVENTORY -------- Light Treads Advanced Treads Light Armor Plating Improved Medium Armor Plating Rocket Launcher [Rating: 26] Favorites ----------- Power Ion Engine Engine Ion Engine Power Core Light Nuclear Core Propulsion Light Treads Treads Light Treads Leg Carbon-fiber Leg Utility Small Storage Unit Device Heat Sink Storage Small Storage Unit Processor Core Analyzer Protection Utility Shielding Weapon Light Assault Rifle Energy Gun Particle Gun Ballistic Gun Light Assault Rifle Ballistic Cannon Flak Cannon Launcher Rocket Launcher Build | -11 -10 -9 -9 -8 ------- Run | Yrd Mat Mat Min Mat Slots Evolved 4 | . . 2 . 2 Power 1 | . . . . 1 Propulsion 1 | . . . . 1 Utility 2 | . . 2 . . Weapon . | . . . . . Parts Attached 36 | 5 2 2 5 22 Power 7 | 1 . . 1 5 Engine 4 | 1 . . 1 2 Core 3 | . . . . 3 Reactor . | . . . . . Propulsion 11 | 2 . . 1 8 Treads 10 | 2 . . 1 7 Leg 1 | . . . . 1 Wheel . | . . . . . Hover . | . . . . . Flight . | . . . . . Utility 8 | 1 1 2 2 2 Device 2 | . 1 . 1 . Storage 3 | 1 . 2 . . Processor 1 | . . . . 1 Hackware . | . . . . . Protection 2 | . . . 1 1 Artifact . | . . . . . Weapon 10 | 1 1 . 1 7 Energy Gun 2 | . . . . 2 Energy Cannon . | . . . . . Ballistic Gun 5 | 1 1 . 1 2 Ballistic Cannon 1 | . . . . 1 Launcher 2 | . . . . 2 Special Weapon . | . . . . . Impact Weapon . | . . . . . Slashing Weapon . | . . . . . Piercing Weapon . | . . . . . Special Melee Weapon . | . . . . . Unidentified Prototypes . | . . . . . Parts Lost 28 | . . . 4 24 Power 7 | . . . 1 6 Propulsion 9 | . . . 1 8 Utility 4 | . . . 1 3 Weapon 8 | . . . 1 7 Highest Loss Streak 11 | . . . 2 11 To Critical Strikes . | . . . . . Average Slot Usage (%) 93 | . 82 95 99 91 Engine 10 | . 14 11 10 8 Core 2 | . . . . 6 Treads 24 | . 28 22 21 25 Device 3 | . 9 11 5 . Storage 24 | . 14 28 33 21 Processor 2 | . . . . 4 Protection 5 | . . . 5 8 Ballistic Gun 17 | . 16 22 22 13 Naked Turns . | . . . . . Heaviest Build 30 | 12 14 26 26 30 Greatest Support 60 | 40 40 40 40 60 Greatest Overweight (x) 1 | . . . . 1 Average Overweight (x) . | . . . . . Largest Inventory Capacity 10 | 8 8 10 10 10 Average Capacity 9 | 6 8 10 10 10 Most Carried 10 | 5 8 9 10 10 Average Carried 8 | 2 5 7 9 8 Final Capacity 10 | 8 8 10 10 10 Final Carried 10 | 3 8 8 10 2 Class Distribution -------------------- 83% | Mutant 16% | Scavenger-Mutant Dominant Class ---------------- Mutant | -10/Materials Mutant | -9/Materials Mutant | -9/Mines Mutant | -8/Materials Resources | -11 -10 -9 -9 -8 ----------- Run | Yrd Mat Mat Min Mat Matter Collected 864 | 207 101 . 296 260 Remotely . | . . . . . Salvage Created 1399 | . 166 . 593 640 Parts 73 | . 7 . 35 31 Haulers Intercepted . | . . . . . Recyclers Shooed 1 | . . . . 1 Parts Field Recycled . | . . . . . Retrieved Matter . | . . . . . Parts Self-Destructed . | . . . . . Prevented . | . . . . . Kills | -11 -10 -9 -9 -8 ------- Run | Yrd Mat Mat Min Mat Combat Hostiles Destroyed 32 | . 4 . 14 14 Guns 31 | . 4 . 14 13 Cannons 1 | . . . . 1 Classes Destroyed 5 | . 1 . 2 2 Recycler 1 | . . . 1 . Swarmer 3 | . . . 3 . Grunt 23 | . 4 . 11 8 Sentry 3 | . . . . 3 Hunter 3 | . . . . 3 Best Kill Streak 5 | . 2 . 5 3 Combat Bots Only 5 | . 2 . 5 3 Max Kills in Single Turn 2 | . 1 . 1 2 Gunslinging . | . . . . . Exploded . | . . . . . Melee . | . . . . . Uniques/NPCs Destroyed . | . . . . . Combat | -11 -10 -9 -9 -8 -------- Run | Yrd Mat Mat Min Mat Hostile Shots Fired 332 | . 17 . 65 250 Missed 73 | . 5 . 17 51 Damage Taken 3941 | . 158 . 545 3238 Core 676 | . 11 . 85 580 Absorbed by Shields . | . . . . . Redirected to Shielding 53 | . . . 10 43 Core Remaining (%) 91 | 100 95 . 78 . Volleys Fired 155 | . 16 . 41 98 Largest 2 | . 1 . 2 2 Hottest 130 | . 20 . 40 130 Shots Fired 248 | . 16 . 81 151 Gun 239 | . 16 . 81 142 Cannon 9 | . . . . 9 Launcher . | . . . . . Special . | . . . . . Kinetic 223 | . 16 . 81 126 Thermal 25 | . . . . 25 Explosive . | . . . . . Electromagnetic . | . . . . . Robot Hit Streak 14 | . 12 . 14 12 Robot Miss Streak 5 | . 2 . 2 5 Penetration Max . | . . . . . Secondary Targets 4 | . . . 4 . Max Gunslinging Chain 1 | . . . 1 . Shots Hit Robots 184 | . 13 . 62 109 Core Hits 107 | . 8 . 32 67 Critical Kills . | . . . . . Critical Parts Destroyed 1 | . . . 1 . Critical Strikes 2 | . . . 1 1 Burn 1 | . . . . 1 Destroy 1 | . . . 1 . Melee Attacks . | . . . . . Impact . | . . . . . Slashing . | . . . . . Piercing . | . . . . . Sneak Attacks . | . . . . . Combat Hostiles . | . . . . . Follow-up Attacks . | . . . . . Damage Inflicted 2037 | . 156 . 559 1322 Guns 1826 | . 156 . 556 1114 Cannons 208 | . . . . 208 Explosions . | . . . . . Melee . | . . . . . Ramming 3 | . . . 3 . Kinetic 1715 | . 156 . 556 1003 Thermal 319 | . . . . 319 Explosive . | . . . . . Electromagnetic . | . . . . . Impact . | . . . . . Slashing . | . . . . . Piercing . | . . . . . Highest Corruption . | . . . . . Average Corruption . | . . . . . Corruption Purged . | . . . . . Corruption Blocked . | . . . . . Overload Shots . | . . . . . Overflow Damage . | . . . . . Projectiles . | . . . . . Explosions . | . . . . . Melee . | . . . . . Knockbacks 13 | . . . . 13 Impact . | . . . . . Kinetic 10 | . . . . 10 Secondary 3 | . . . . 3 Self-Inflicted Damage . | . . . . . Shots . | . . . . . Rammed . | . . . . . Targets Rammed 1 | . . . 1 . Kicked . | . . . . . Crushed 1 | . . . 1 . Highest Temperature 552 | . . . 9 552 Average Temperature 118 | . . . 4 134 Received Heat Transfer 1887 | . 87 . 252 1548 Effects 22 | . . . . 22 Shutdowns 2 | . . . . 2 Energy Bleed 1 | . . . . 1 Interference 3 | . . . . 3 Matter Decay 2 | . . . . 2 Short Circuit 2 | . . . . 2 Damage (minor) 5 | . . . . 5 Damage (major) 5 | . . . . 5 Damage (core) 2 | . . . . 2 Siege Activations . | . . . . . Robots Corrupted . | . . . . . Combat Hostiles . | . . . . . Parts Fried . | . . . . . Impact Corruptions . | . . . . . Robots Melted . | . . . . . Combat Hostiles . | . . . . . Parts Melted 1 | . . . . 1 Heat Transferred 705 | . . . . 705 Parts Sabotaged . | . . . . . Parts Stolen . | . . . . . Parts Stripped . | . . . . . Power Chain Reactions . | . . . . . Alert | -11 -10 -9 -9 -8 ------- Run | Yrd Mat Mat Min Mat Peak Influence 195 | . 135 56 195 166 Initial 76 | . . 56 21 76 Average 85 | . 86 56 102 82 Maximum Alert Level . | . . . . . Low Security (%) 100 | 100 100 100 100 100 Level 1 . | . . . . . Level 2 . | . . . . . Level 3 . | . . . . . Level 4 . | . . . . . Level 5 . | . . . . . High Security . | . . . . . Max Security . | . . . . . Squads Dispatched 4 | . . . 1 3 Investigation 3 | . . . 1 2 Extermination . | . . . . . Reinforcement 1 | . . . . 1 Assault . | . . . . . Garrison . | . . . . . Intercept . | . . . . . Searches Triggered . | . . . . . Construction Impeded . | . . . . . Haulers Reinforced . | . . . . . Active Scanning Responses . | . . . . . Cargo Convoy Interrupts . | . . . . . Stealth | -11 -10 -9 -9 -8 --------- Run | Yrd Mat Mat Min Mat Distress Signals 2 | . 1 . . 1 Communications Jammed . | . . . . . Distress Signals . | . . . . . Times Spotted 47 | . 8 . 17 22 Peak Tracking Total 6 | . 3 . 3 6 Tactical Retreats 2 | . . . 2 . Traps | -11 -10 -9 -9 -8 ------- Run | Yrd Mat Mat Min Mat Traps Triggered 1 | . . . . 1 Indirectly . | . . . . . Trap Hack Attempts . | . . . . . Triggered . | . . . . . Disarmed . | . . . . . Reprogrammed 5 | . . . . 5 Reused 2 | . . . . 2 Traps Extracted . | . . . . . Installed . | . . . . . Triggered 2 | . . . . 2 Machines | -11 -10 -9 -9 -8 ---------- Run | Yrd Mat Mat Min Mat Machines Disabled . | . . . . . Max in Single Turn . | . . . . . Machines Repaired . | . . . . . Machines Dismantled . | . . . . . Machines Sabotaged . | . . . . . Overloaded Fab Kills . | . . . . . Hacking | -11 -10 -9 -9 -8 --------- Run | Yrd Mat Mat Min Mat Machines Accessed 4 | . . . 1 3 Terminals 3 | . . . . 3 Fabricators . | . . . . . Repair Stations . | . . . . . Recycling Units . | . . . . . Scanalyzers . | . . . . . Garrison Access . | . . . . . Total Hacks 9 | . . . 1 8 Successful 5 | . . . 1 4 Failed 4 | . . . . 4 Catastrophic . | . . . . . Database Lockouts . | . . . . . Manual . | . . . . . Terminals 8 | . . . . 8 Fabricators . | . . . . . Repair Stations . | . . . . . Recycling Units . | . . . . . Scanalyzers . | . . . . . Garrison Access . | . . . . . Terminal Hacks 5 | . . . 1 4 Record 1 | . . . . 1 Open Door 1 | . . . 1 . Terminal Index 1 | . . . . 1 Reprogram Traps 1 | . . . . 1 Dispatch Records 1 | . . . . 1 Fabricator Hacks . | . . . . . Repair Station Hacks . | . . . . . Recycling Unit Hacks . | . . . . . Scanalyzer . | . . . . . Garrison Access Hacks . | . . . . . Unauthorized Hacks . | . . . . . Terminals . | . . . . . Fabricators . | . . . . . Repair Stations . | . . . . . Recycling Units . | . . . . . Scanalyzers . | . . . . . Garrison Access . | . . . . . Data Cores Recovered . | . . . . . Used . | . . . . . Hacking Detections 1 | . . . . 1 Full Trace Events 1 | . . . . 1 Feedback Events . | . . . . . Feedback Blocked . | . . . . . Robot Schematics Acquired . | . . . . . Robots Built . | . . . . . Authchips . | . . . . . Time . | . . . . . Total Robot Build Rating . | . . . . . Part Schematics Acquired . | . . . . . Parts Built . | . . . . . Authchips . | . . . . . Time . | . . . . . Total Part Build Rating . | . . . . . Parts Repaired . | . . . . . Time . | . . . . . Parts Recycled . | . . . . . Recycled Matter . | . . . . . Retrieved Matter . | . . . . . Retrieved Components . | . . . . . Parts Scanalyzed . | . . . . . Part Schematics Acquired . | . . . . . Parts Damaged . | . . . . . Bothacking | -11 -10 -9 -9 -8 ------------ Run | Yrd Mat Mat Min Mat Used RIF Installer . | . . . . . Robots Hacked . | . . . . . Non-combat . | . . . . . Combat . | . . . . . Robot Hacks Applied . | . . . . . Relay Couplers Released . | . . . . . Fabnet Peak Effective % . | . . . . . Robots Rewired . | . . . . . Allies Hacked . | . . . . . Hacks Repelled . | . . . . . Allies | -11 -10 -9 -9 -8 -------- Run | Yrd Mat Mat Min Mat Total Allies . | . . . . . Largest Group . | . . . . . Highest-Rated Group . | . . . . . Highest-Rated Ally . | . . . . . Total Orders . | . . . . . Ally Attacks . | . . . . . Total Damage . | . . . . . Kills . | . . . . . Allies Corrupted . | . . . . . Allies Melted . | . . . . . Intel | -11 -10 -9 -9 -8 ------- Run | Yrd Mat Mat Min Mat Robot Analysis Total . | . . . . . Derelict Logs Recovered 1 | . . . 1 . Drone Launches . | . . . . . Drone Recoveries . | . . . . . Exploration | -11 -10 -9 -9 -8 ------------- Run | Yrd Mat Mat Min Mat Turns Passed 2056 | 75 322 46 688 925 Spaces Moved 951 | 40 170 27 336 378 Core 1 | 1 . . . . Treads 950 | 39 170 27 336 378 Legs . | . . . . . Wheels . | . . . . . Hover . | . . . . . Flight . | . . . . . Fastest Speed 50 | 50 160 160 160 160 Average Speed 160 | 157 160 160 160 161 Slowest Speed 250 | 160 160 160 160 250 Overloaded Moves . | . . . . . Propulsion Burnouts . | . . . . . Robots Hopped . | . . . . . Cave-ins Triggered . | . . . . . Exploration Rate (%) 22 | 4 28 3 46 30 Regions Visited 4 Branch Regions 1 Pre-discovered Areas 1 | . . . 1 . Known Exits Taken . | . . . . . Unknown Exits Taken 4 | 1 1 1 1 . Scrap Searched . | . . . . . Spaces Dug . | . . . . . Terrain Destroyed . | . . . . . Melee . | . . . . . Projectile . | . . . . . AOE . | . . . . . Terrain Rammed . | . . . . . Walls Destroyed . | . . . . . Machines Disabled . | . . . . . Actions | -11 -10 -9 -9 -8 --------- Run | Yrd Mat Mat Min Mat Total 1266 | 52 205 30 418 561 Wait 72 | . 9 . 24 39 Move 947 | 39 169 26 335 378 Hop . | . . . . . Pick Up 45 | 8 8 2 9 18 Fast Attach . | . . . . . Attach 35 | 5 2 2 5 21 Detach . | . . . . . Swap 1 | . . . . 1 Drop 10 | . 1 . 3 6 Fire 155 | . 16 . 41 98 Melee . | . . . . . Ram . | . . . . . Kick . | . . . . . Crush 1 | . . . 1 . Escape Stasis . | . . . . . Rewire . | . . . . . Trap . | . . . . . Miscellaneous . | . . . . . Route ------- -11/Scrapyard -10/Materials -9/Materials -9/Mines -8/Materials History --------- Turn | Location | Event 7 | -11/Scrapyard | Discovered new exit (range 15) 76 | -11/Scrapyard | Entered Materials 313 | -10/Materials | Build established: Mutant 373 | -10/Materials | Discovered new exit (range 16) 398 | -10/Materials | Entered another Materials area 398 | -9/Materials | Evolved 2 slots: Utility x2 399 | -9/Materials | Discovered new exit (range 15) 444 | -9/Materials | Entered Mines 451 | -9/Mines | Received a Rocket Launcher from a helpful Derelict 507 | -9/Mines | Met a Derelict shopkeep closing up shop 760 | -9/Mines | Discovered new exit (range 9) 776 | -9/Mines | Joined a pair of Derelicts in attacking an 0b10 outpost 1132 | -9/Mines | Entered Materials 1132 | -8/Materials | Evolved 2 slots: Power x1, Propulsion x1 1730 | -8/Materials | Build established: Scavenger-Mutant 1836 | -8/Materials | Lost 6 parts (1p3n2w) 1855 | -8/Materials | Core integrity fell below 50% 2056 | -8/Materials | Core integrity fell below 20% 2058 | -8/Materials | Core destroyed Last Messages --------------- Overheating: Lgt. Treads damaged (-66). Overheating: Imp. Medium Armor Plating damaged (-114). M-28 Smith repairs G-47 Trooper. Overheating: Lgt. Deuterium Engine damaged (-2). Overheating: Lgt. Treads damaged (-17). Overheating: Spread Laser damaged (-19). G-47 Trooper destroyed. Lgt. Treads destroyed. Overheating: Spread Laser damaged (-4). Power failure, Lgt. Deuterium Engine shutdown. Overheating: Energy bleed (-8). Overheating: Spread Laser damaged (-2). Overheating: Adv. Treads damaged (-74). Lgt. Deuterium Engine destroyed. Core Analyzer broken. Overheating: Short circuit. Overheating: Core damaged (-66). Spread Laser destroyed. Overheating: Core damaged (-88). Map ----- +----------------------------------------------------+ | ????????????????????????????# # #??# | | ????????????????????????????# # #??# | | ????????????????????????????+ # #??# | | ????????????????????????????# # % #??# | | ????????????????????????????# #= ! *#??# | | ????????????????????????????# # #??# | | ????????????????????????????# # % #??# | | ????????????????????????????# #####+###+###### | | ????????????????????????????# % | | ?????????????????#??????????#= ##### | | ?????????????????# ?????????# """ """ =#???? | | ?????????????????# ?????????+ """ """ #???? | | ?????????????????# ????????# """ """ #???? | | ?????????????????# ???????#! ! #???? | | ?????????????????# ######## #???? | | ?????????????????# """ """ #???? | | ?????????????????# """ """ #???? | | ?????????????????+ """ """ #???? | | ?????????????????# #???? | | ?????????????????# ###+### #???? | | ??????????????????????# T ###+########## ##???? | | ??????????????????????# g # #????? #????? | | ??????????????????????# %=%# """ #????? ?????? | | ??????????????????????#%=%*# """ #????? ?????? | | ??????????????????????# = # """ #????? ?????? | | ??????????????????????# @ # #????????????? | | ??????????????????????# # """ "" #????????????? | | ??????????????????????# # """ T" #????????????? | | ??????????????????????# # """ "" #????????????? | | ??????????????????????###### #????????????? | | ???????????????????????????##########????????????? | | ?????????????????????????????????????????????????? | | ?????????????????????????????????????????????????? | | ?????????????????????????????????????????????????? | | ?????????????????????????????????????????????????? | | ?????????????????????????????????????????????????? | | ?????????????????????????????????????????????????? | | ?????????????????????????????????????????????????? | | ?????????????????????????????????????????????????? | | ?????????????????????????????????????????????????? | | ?????????????????????????????????????????????????? | | ?????????????????????????????????????????????????? | | ?????????????????????????????????????????????????? | | ?????????????????????????????????????????????????? | | ?????????????????????????????????????????????????? | | | | | | | | | | | +----------------------------------------------------+ Best States ------------- Heat Dissipation 38 Energy Generation 24 Energy Capacity 310 Matter Stores 400 Matter Capacity 400 Sight Range 16 Terrain Scan Density 10 Armor Coverage 225 Utility Shielding 33 Evasion (%) 40 Core Analysis 6 Recoil Reduction 3 Item Schematics ----------------- None Robot Schematics ------------------ None Fabricated ------------ Nothing Alien Tech Used ----------------- None Achievements -------------- None Challenges ------------ None Game ------ Seed AntimissileLongswordEngine Manual? 0 Play Time 00:17:52 Cumulative 5.3 hours Start 2024.04.11 @ 19:07:25 End 2024.04.11 @ 19:23:45 Sessions 1 Manual Loads 0 Difficulty Rogue Special Mode None Game No. 12 Rogue 12 Adventurer 0 Explorer 0 Win Type - Total 0 Types 0/0/0/0/0/0/0/0/0 Lore% 4 Gallery% 12 Achievement% 11 Wizard Run 0 Options --------- Layout 1 ASCII 0 Keyboard 0 Movement Mouse Keybinds 0 Fullscreen 1 Font 24/Smallcaps Map View 50x35 Zoom Use 0% Tactical HUD 0 Map Filters NONE Filters NONE Steam 1 RUN: c4b2f17a-41eb-49be-b41c-e962fbfc42fc